bitfinex/quotes_SOLUSD_20240921
["timestamp","ask_amount","ask_price","bid_price","bid_amount"]
[1726888589826,22.9185,146.33,146.23,30.15855791]
[1726888590141,0.12549,146.32,146.23,23.0451]
[1726888590438,0.12549,146.32,146.23,35.63091157]
[1726888590641,0.12549,146.32,146.2,15.35453366]
[1726888590642,48.12528,146.32,146.2,7.11425105]
[1726888590854,68.64528,146.32,146.2,12.58581157]
[1726888591144,77.9203,146.31,146.19,6.8461342]
[1726888591321,0.25098,146.3,146.19,19.43194577]
[1726888591516,0.25098,146.3,146.19,12.83594577]
[1726888592024,0.25098,146.3,146.19,12.95850758]
[1726888592735,0.12549,146.28,146.19,0.37269601]
[1726888593743,0.12549,146.28,146.19,20.37269601]
[1726888593920,0.12549,146.26,146.19,0.37269601]
[1726888594237,0.12549,146.26,146.19,20.37269601]
[1726888594839,15.8772,146.25,146.19,20.37269601]
[1726888595015,15.8772,146.25,146.19,0.37269601]
[1726888595216,15.8772,146.25,146.21,23.776884]
[1726888595436,15.8772,146.25,146.22,1.36764998]
[1726888595641,15.8772,146.25,146.23,23.776884]
[1726888596727,15.8772,146.25,146.22,23.776884]
[1726888598724,15.8772,146.25,146.21,23.776884]
[1726888599327,15.8772,146.25,146.23,23.776884]
[1726888603251,6.6126,146.27,146.23,23.776884]
[1726888607152,15.8772,146.28,146.25,23.776884]
[1726888607857,7.11160073,146.3,146.24,36.36269557]
[1726888608045,1.18853337,146.3,146.26,23.776884]
[1726888609443,1.18853337,146.3,146.25,23.776884]
[1726888610051,6.6126,146.31,146.24,23.776884]
[1726888610254,6.6126,146.31,146.26,23.776884]
[1726888612460,6.1126,146.31,146.26,23.776884]
[1726888615363,6.1126,146.31,146.26,25.14414365]
[1726888615750,6.1126,146.31,146.26,23.776884]
[1726888622561,0.12549,146.3,146.24,0.12256181]
[1726888623242,7.10598808,146.29,146.24,0.12256181]
[1726888627155,16.3942,146.27,146.24,0.12256181]
[1726888629160,0.12549,146.26,146.24,0.12256181]
[1726888631275,17.58299296,146.27,146.24,0.12256181]
[1726888633452,24.69596446,146.27,146.24,0.12256181]
[1726888638282,17.58299296,146.27,146.24,0.12256181]
[1726888638987,1.18879296,146.27,146.24,0.12256181]
[1726888640195,0.12549,146.3,146.24,0.12256181]
[1726888642769,24.66003169,146.31,146.24,1.4900735]
[1726888642968,24.66003169,146.31,146.25,23.776884]
[1726888645485,24.66003169,146.31,146.25,36.36269557]
[1726888645690,8.29773169,146.31,146.25,36.36269557]
[1726888646283,8.29773169,146.31,146.27,23.776884]
[1726888646787,8.29773169,146.31,146.26,23.776884]
[1726888651288,8.29773169,146.31,146.25,23.776884]
[1726888652388,8.29773169,146.31,146.24,23.89944581]
[1726888654089,8.29773169,146.31,146.24,25.26686484]
[1726888659398,8.29773169,146.31,146.24,36.48525738]
[1726888660982,0.12549,146.3,146.24,36.48525738]
[1726888661487,16.2383,146.29,146.24,0.12256181]
[1726888661683,0.12549,146.28,146.24,0.12256181]
[1726888662084,1.18898384,146.27,146.24,0.12256181]
[1726888663104,0.12549,146.26,146.24,0.12256181]
[1726888665174,1.18898384,146.27,146.24,0.12256181]
[1726888665702,23.32738048,146.29,146.24,0.12256181]
[1726888668907,0.12549,146.28,146.24,0.12256181]
[1726888669407,0.25098,146.28,146.24,0.12256181]
[1726888672113,0.12549,146.26,146.24,0.12256181]
[1726888673719,7.0842517,146.27,146.24,0.12256181]
[1726888675415,16.2383,146.29,146.24,0.12256181]
[1726888680623,7.08292746,146.3,146.25,36.36269557]
[1726888680917,15.0392,146.34,146.27,23.776884]
[1726888681112,7.0817564,146.32,146.27,23.776884]
[1726888681615,7.0817564,146.32,146.24,12.70837338]
[1726888681807,7.0817564,146.32,146.24,20.12256181]
[1726888682011,7.0817564,146.32,146.25,23.776884]
[1726888682513,0.12549,146.31,146.25,23.776884]
[1726888685020,0.12549,146.31,146.25,36.36269557]
[1726888686821,0.12549,146.31,146.25,23.776884]
[1726888687129,0.12549,146.31,146.24,0.12256181]
[1726888687510,0.12549,146.31,146.24,23.89944581]
[1726888694526,0.12549,146.32,146.24,23.89944581]
[1726888695030,7.0765924,146.3,146.24,23.89944581]
[1726888695335,7.0765924,146.3,146.24,36.48525738]
[1726888695527,7.0765924,146.3,146.24,23.89944581]
[1726888696817,7.0765924,146.3,146.24,25.26689229]
[1726888697132,7.0765924,146.3,146.24,23.89944581]
[1726888697327,7.0765924,146.3,146.24,25.26689059]
[1726888697919,7.0765924,146.3,146.24,23.89944581]
[1726888698122,7.0765924,146.3,146.24,37.85270258]
[1726888698331,0.25098,146.33,146.24,37.85270258]
[1726888698729,0.12549,146.31,146.24,37.85270258]
[1726888699037,0.12549,146.31,146.26,23.776884]
[1726888699543,0.12549,146.31,146.25,23.776884]
[1726888700345,0.12549,146.31,146.25,25.14420659]
[1726888700836,0.12549,146.31,146.25,23.776884]
[1726888705535,0.12549,146.31,146.24,23.89944581]
[1726888706125,0.12549,146.31,146.24,25.26688821]
[1726888706521,0.12549,146.31,146.26,23.776884]
[1726888711840,0.12549,146.31,146.24,0.12256181]
[1726888712030,0.12549,146.31,146.24,23.89944581]
[1726888714345,0.25098,146.31,146.24,23.89944581]
[1726888714924,41.29098,146.31,146.24,23.89944581]
[1726888717950,41.29098,146.31,146.24,0.12256181]
[1726888721150,15.7581,146.3,146.24,0.12256181]
[1726888721326,0.12549,146.29,146.24,0.12256181]
[1726888721528,7.19649848,146.29,146.24,0.12256181]
[1726888727569,48.23649848,146.29,146.24,0.12256181]
[1726888727752,0.12549,146.28,146.24,0.12256181]
[1726888731851,7.07211619,146.27,146.24,0.12256181]
[1726888732058,0.12549,146.26,146.24,0.12256181]
[1726888732837,0.25098,146.26,146.24,0.12256181]
[1726888734854,16.68998,146.26,146.24,0.12256181]
[1726888735157,41.29098,146.25,146.24,0.12256181]
[1726888739655,65.067864,146.25,146.24,0.12256181]
[1726888740849,42.48026079,146.25,146.24,0.12256181]
[1726888742233,49.55762508,146.25,146.24,0.12256181]
[1726888743260,49.55762508,146.25,146.19,0.2501342]
[1726888743261,65.067864,146.24,146.19,0.2501342]
[1726888744263,71.905964,146.24,146.19,0.2501342]
[1726888744647,41.04,146.22,146.19,0.2501342]
[1726888744852,0.25098,146.21,146.19,0.2501342]
[1726888750738,41.04,146.24,146.19,0.2501342]
[1726888752147,0.25098,146.24,146.19,0.2501342]
[1726888752541,7.33119975,146.24,146.19,0.2501342]
[1726888755272,0.12549,146.22,146.19,0.2501342]
[1726888755447,7.33119975,146.24,146.19,0.2501342]
[1726888773573,0.12549,146.22,146.19,0.2501342]
[1726888773769,7.33119975,146.24,146.19,0.2501342]
[1726888774079,0.25098,146.24,146.19,0.2501342]
[1726888774278,0.12549,146.22,146.19,0.2501342]
[1726888775275,61.71549,146.22,146.19,0.2501342]
[1726888775482,0.12549,146.22,146.19,0.2501342]
[1726888778880,7.10234089,146.23,146.19,0.2501342]
[1726888779184,1.18934694,146.25,146.19,0.2501342]
[1726888779479,7.10121564,146.24,146.19,0.2501342]
[1726888780101,0.12549,146.23,146.19,0.2501342]
[1726888783473,7.10121564,146.24,146.21,59.06719557]
[1726888783681,1.18911902,146.28,146.21,59.06719557]
[1726888784084,8.28902462,146.28,146.21,46.481384]
[1726888785395,8.28902462,146.28,146.22,13.95359891]
[1726888785695,1.18911902,146.28,146.23,12.58581157]
[1726888786065,41.04,146.3,146.25,36.36269557]
[1726888786066,7.0999153,146.3,146.25,36.36269557]
[1726888786271,7.0831342,146.35,146.25,36.36269557]
[1726888786467,41.04,146.34,146.25,36.36269557]
[1726888786674,7.08110463,146.32,146.25,36.36269557]
[1726888787490,0.12549,146.31,146.25,36.36269557]
[1726888790294,7.08110463,146.32,146.28,12.58581157]
[1726888790594,7.08110463,146.32,146.29,13.95290307]
[1726888790785,7.08110463,146.32,146.31,16.3963]
[1726888791181,0.2501342,146.35,146.31,16.3963]
[1726888801582,7.0834342,146.35,146.31,16.3963]
[1726888801783,0.12549,146.34,146.31,16.3963]
[1726888805203,0.2501342,146.35,146.31,16.3963]
[1726888814418,0.12549,146.34,146.31,16.3963]
[1726888814992,6.8339,146.33,146.27,15.8718]
[1726888815294,7.08438,146.34,146.27,15.8718]
[1726888815709,0.25098,146.34,146.27,15.8718]
[1726888815899,0.12549,146.32,146.27,15.8718]
[1726888816489,7.09702252,146.33,146.28,36.36269557]
[1726888816692,7.09702252,146.33,146.29,1.36699819]
[1726888816912,0.2501342,146.35,146.29,1.36699819]
[1726888817112,7.34605526,146.35,146.29,1.36699819]
[1726888817785,0.12549,146.34,146.29,1.36699819]
[1726888819909,0.12549,146.34,146.28,36.36269557]
[1726888820116,0.12549,146.34,146.28,23.776884]
[1726888820417,0.12549,146.34,146.27,28.45761157]
[1726888820418,0.12549,146.34,146.27,15.8718]
[1726888821121,0.12549,146.34,146.28,23.776884]
[1726888824522,0.12549,146.34,146.27,15.8718]
[1726888827311,0.25098,146.34,146.27,15.8718]
[1726888827526,0.12549,146.32,146.27,15.8718]
[1726888828529,0.12549,146.32,146.26,6.5779]
[1726888830432,0.25098,146.32,146.23,15.8718]
[1726888831341,7.08538,146.32,146.23,15.8718]
[1726888831933,0.25098,146.3,146.22,6.5779]
[1726888832134,0.25098,146.28,146.2,15.8718]
[1726888832431,0.25098,146.27,146.19,0.2501342]
[1726888832655,7.08778,146.27,146.19,0.2501342]
[1726888832846,0.25098,146.25,146.19,0.2501342]
[1726888833915,0.25098,146.26,146.19,0.2501342]
[1726888835818,16.12388,146.26,146.19,0.2501342]
[1726888837744,0.12549,146.24,146.19,0.2501342]
[1726888838452,0.25098,146.24,146.19,0.2501342]
[1726888842636,7.09976906,146.25,146.19,0.2501342]
[1726888844230,0.12549,146.24,146.19,0.2501342]
[1726888847868,0.12549,146.25,146.19,0.2501342]
[1726888848170,7.20760419,146.23,146.19,0.2501342]
[1726888855884,0.12549,146.22,146.19,0.2501342]
[1726888857346,0.12549,146.21,146.19,0.2501342]
[1726888858442,48.24885167,146.21,146.19,0.2501342]
[1726888858952,0.12549,146.2,146.19,0.2501342]
[1726888863879,7.07336167,146.21,146.19,0.2501342]
[1726888864463,41.05,146.25,146.19,0.2501342]
[1726888864662,7.07060325,146.23,146.19,0.2501342]
[1726888870282,7.07060325,146.23,146.2,23.776884]
[1726888870464,7.07060325,146.23,146.2,25.14463708]
[1726888870775,1.19043242,146.27,146.2,23.776884]
[1726888870971,8.24261467,146.27,146.19,24.0270182]
[1726888871879,0.12549,146.26,146.19,24.0270182]
[1726888872056,0.12549,146.26,146.2,1.3677975]
[1726888882464,0.12549,146.26,146.19,24.0270182]
[1726888886588,0.12549,146.26,146.2,1.36779624]
[1726888887591,0.12549,146.26,146.19,24.0270182]
[1726888892706,1.31584167,146.26,146.19,24.0270182]
[1726888901503,15.6813,146.25,146.19,0.2501342]
[1726888901695,0.12549,146.24,146.19,0.2501342]
[1726888902096,7.17708462,146.24,146.19,0.2501342]
[1726888909723,7.05159462,146.24,146.19,0.2501342]
[1726888910424,15.6813,146.25,146.19,0.2501342]
[1726888911303,15.6813,146.25,146.2,1.36784654]
[1726888912725,15.6813,146.25,146.19,0.2501342]
[1726888918930,0.12549,146.24,146.19,0.2501342]
[1726888919117,41.17549,146.24,146.19,0.2501342]
[1726888919437,0.12549,146.24,146.19,0.2501342]
[1726888921045,7.18065848,146.24,146.19,0.2501342]
[1726888926127,48.23065848,146.24,146.19,0.2501342]
[1726888926331,0.12549,146.23,146.19,0.2501342]
[1726888928438,15.44098,146.21,146.19,0.2501342]
[1726888928637,56.49098,146.21,146.19,0.2501342]
[1726888931422,63.55188338,146.21,146.19,0.2501342]
[1726888931931,70.39148338,146.21,146.19,0.2501342]
[1726888932543,71.58249743,146.21,146.19,0.2501342]
[1726888933443,48.14088,146.2,146.19,0.2501342]
[1726888933641,41.30098,146.2,146.19,0.2501342]
[1726888943353,0.12549,146.2,146.19,0.2501342]
[1726888947053,8.25191743,146.21,146.19,0.2501342]
[1726888947953,7.06090338,146.21,146.19,0.2501342]
[1726888948454,0.12549,146.2,146.19,0.2501342]
[1726888950138,7.06090338,146.21,146.19,0.2501342]
[1726888953148,0.12549,146.2,146.19,0.2501342]
[1726888954055,7.06090338,146.21,146.19,0.2501342]
[1726888954260,0.12549,146.2,146.19,0.2501342]
[1726888961239,0.25098,146.2,146.19,0.2501342]
[1726888961435,48.14088,146.2,146.19,0.2501342]
[1726888964350,48.14088,146.2,146.15,0.2501342]
[1726888964351,47.8906,146.19,146.15,0.2501342]
[1726888964557,0.25098,146.18,146.15,0.2501342]
[1726888965148,0.12549,146.16,146.15,0.2501342]
[1726888969948,8.26834528,146.17,146.15,0.2501342]
[1726888970146,7.07734291,146.17,146.15,0.2501342]
[1726888994092,1.19083111,146.2,146.15,0.2501342]
[1726888994276,1.19083111,146.2,146.16,29.961684]
[1726888994474,7.07772267,146.23,146.16,43.91563409]
[1726888994791,8.26823236,146.23,146.16,43.91563409]
[1726888995087,7.07772267,146.23,146.16,43.91563409]
[1726888995787,0.12549,146.22,146.16,43.91563409]
[1726888997894,0.12549,146.22,146.16,31.32982252]
[1726888998083,0.12549,146.22,146.16,29.961684]
[1726888998288,0.12549,146.22,146.16,6.1848]
[1726888999172,0.12549,146.22,146.16,7.55302475]
[1726888999396,0.12549,146.22,146.17,23.776884]
[1726889002690,7.07772267,146.23,146.17,23.776884]
[1726889006212,0.12549,146.22,146.17,23.776884]
[1726889019398,0.25098,146.22,146.16,6.1848]
[1726889019581,0.25098,146.22,146.15,16.1046342]
[1726889019979,41.17549,146.2,146.15,16.1046342]
[1726889030010,0.12549,146.21,146.15,16.1046342]
[1726889030212,7.07715774,146.19,146.15,16.1046342]
[1726889030891,7.07715774,146.19,146.15,0.2501342]
[1726889040803,7.07715774,146.19,146.15,12.83594577]
[1726889041003,16.4594,146.24,146.16,1.36815782]
[1726889041322,7.07800301,146.23,146.17,23.776884]
[1726889041618,7.07800301,146.23,146.16,23.776884]
[1726889042504,0.12549,146.22,146.16,23.776884]
[1726889044717,0.12549,146.22,146.16,25.14504497]
[1726889045321,0.12549,146.22,146.16,37.73085654]
[1726889045527,7.07800301,146.23,146.17,12.58581157]
[1726889045820,7.07800301,146.23,146.18,1.36799341]
[1726889046605,7.07800301,146.23,146.18,23.776884]
[1726889046808,0.25098,146.26,146.19,1.36789195]
[1726889050431,0.12549,146.26,146.18,36.36269557]
[1726889050637,0.12549,146.26,146.2,23.776884]
[1726889051834,0.12549,146.26,146.2,25.14467666]
[1726889052929,0.12549,146.26,146.2,37.73048823]
[1726889054730,7.09489158,146.27,146.22,23.776884]
[1726889055510,7.09489158,146.27,146.21,23.776884]
[1726889056920,6.59489158,146.27,146.21,23.776884]
[1726889069129,6.59489158,146.27,146.21,12.58581157]
[1726889069550,6.59489158,146.27,146.22,23.776884]
[1726889072162,0.12549,146.28,146.22,23.776884]
[1726889072462,0.12549,146.28,146.21,23.776884]
[1726889075523,0.12549,146.28,146.21,36.36269557]
[1726889075730,0.12549,146.28,146.21,12.58581157]
[1726889075955,0.12549,146.28,146.22,23.776884]
[1726889082961,0.12549,146.29,146.22,23.776884]
[1726889093244,0.25098,146.29,146.22,23.776884]
[1726889093448,0.25098,146.29,146.21,23.776884]
[1726889094659,63.7196342,146.3,146.17,18.98301157]
[1726889094660,0.25098,146.27,146.17,18.98301157]
[1726889095460,0.25098,146.27,146.18,13.95366562]
[1726889096544,0.25098,146.27,146.19,23.776884]
[1726889096769,0.25098,146.27,146.2,1.36783607]
[1726889097551,0.25098,146.27,146.19,23.776884]
[1726889097757,0.12549,146.27,146.19,12.58581157]
[1726889097961,0.12549,146.27,146.2,23.776884]
[1726889100873,22.9036,146.28,146.21,12.58581157]
[1726889101064,22.9036,146.28,146.22,23.776884]
[1726889102674,22.9036,146.28,146.21,23.776884]
[1726889107299,22.9036,146.28,146.22,13.9533826]
[1726889107476,22.9036,146.28,146.17,6.3972]
[1726889107477,16.6567,146.28,146.25,23.776884]
[1726889107683,0.2501342,146.3,146.25,37.72999009]
[1726889107999,0.2501342,146.3,146.27,36.36269557]
[1726889108196,0.2501342,146.3,146.29,36.36269557]
[1726889110584,0.2501342,146.3,146.29,23.776884]
[1726889114095,0.2501342,146.3,146.26,23.776884]
[1726889115904,0.2501342,146.3,146.26,36.36269557]
[1726889116677,0.2501342,146.3,146.29,36.48818557]
[1726889116882,0.2501342,146.3,146.29,37.8548887]
[1726889117201,0.2501342,146.3,146.29,36.48818557]
[1726889117370,0.2501342,146.3,146.29,37.85487086]
[1726889122906,0.2501342,146.3,146.29,37.98036086]
[1726889123403,0.2501342,146.3,146.29,56.61367557]
[1726889123910,0.2501342,146.3,146.29,57.98016113]
[1726889124415,0.2501342,146.3,146.29,57.98016182]
[1726889127416,0.2501342,146.3,146.29,56.61367557]
[1726889127795,0.2501342,146.3,146.29,57.98006867]
[1726889128319,0.2501342,146.3,146.29,56.61367557]
[1726889137116,0.2501342,146.35,146.3,44.027864]
[1726889137314,0.2501342,146.35,146.34,12.58581157]
[1726889137519,0.2501342,146.35,146.34,36.36269557]
[1726889141224,0.2501342,146.35,146.34,36.48818557]
[1726889143210,0.0953721,146.39,146.36,12.58581157]
[1726889143409,0.0953721,146.39,146.37,25.14310738]
[1726889143603,21.4155721,146.41,146.37,23.776884]
[1726889144032,21.4155721,146.41,146.36,23.776884]
[1726889146110,21.4155721,146.41,146.36,36.36269557]
[1726889147728,21.4155721,146.41,146.36,23.776884]
[1726889148716,21.4155721,146.41,146.37,1.36617999]
[1726889149331,21.4155721,146.41,146.36,23.776884]
[1726889149835,21.4155721,146.41,146.32,32.58581157]
[1726889150926,21.4155721,146.41,146.33,23.776884]
[1726889151135,21.4155721,146.41,146.33,36.36269557]
[1726889152034,21.4155721,146.41,146.35,23.776884]
[1726889152731,21.4155721,146.41,146.34,23.776884]
[1726889153311,21.4155721,146.41,146.35,1.36637939]
[1726889154133,21.4155721,146.41,146.34,23.776884]
[1726889161438,21.4155721,146.41,146.34,36.36269557]
[1726889161625,21.4155721,146.41,146.35,23.776884]
[1726889162024,21.4155721,146.41,146.34,23.776884]
[1726889162920,21.4155721,146.41,146.35,1.36638915]
[1726889163120,21.4155721,146.41,146.34,23.776884]
[1726889164725,21.4155721,146.41,146.34,36.36269557]
[1726889168148,21.4155721,146.41,146.35,12.58581157]
[1726889168647,21.4155721,146.41,146.36,23.776884]
[1726889169550,21.4155721,146.41,146.34,23.776884]
[1726889173246,21.4155721,146.41,146.33,36.36269557]
[1726889184867,21.4155721,146.41,146.34,0.12549]
[1726889185045,21.4155721,146.41,146.34,12.71130157]
[1726889185353,21.4155721,146.41,146.36,23.776884]
[1726889185560,21.4155721,146.41,146.37,1.36618191]
[1726889185861,21.4155721,146.41,146.34,12.71130157]
[1726889186045,21.4155721,146.41,146.35,12.58581157]
[1726889186560,21.4155721,146.41,146.36,23.776884]
[1726889190371,21.4155721,146.41,146.21,6.80817542]
[1726889190372,0.12549,146.38,146.3,20.0]
[1726889190553,6.95709,146.38,146.28,12.83594577]
[1726889190752,15.8385,146.36,146.28,12.83594577]
[1726889190946,15.8385,146.36,146.28,0.2501342]
[1726889191665,0.12549,146.35,146.28,0.2501342]
[1726889198989,16.328,146.34,146.28,0.2501342]
[1726889203174,0.12549,146.33,146.28,0.2501342]
[1726889203568,6.4903,146.32,146.28,0.2501342]
[1726889210288,0.12549,146.31,146.28,0.2501342]
[1726889210471,16.328,146.3,146.28,0.2501342]
[1726889214976,0.25098,146.29,146.28,0.2501342]
[1726889215696,0.12549,146.29,146.28,0.2501342]
[1726889248533,1.18958535,146.31,146.28,0.2501342]
[1726889248712,1.18958535,146.31,146.28,24.0270182]
[1726889248913,41.06,146.36,146.28,24.0270182]
[1726889249311,1.18957573,146.37,146.28,24.0270182]
[1726889249512,22.1266,146.38,146.28,24.0270182]
[1726889249721,63.1866,146.38,146.28,24.0270182]
[1726889250137,6.832,146.37,146.28,24.0270182]
[1726889250334,47.8927,146.36,146.28,24.0270182]
[1726889250926,0.25098,146.35,146.28,24.0270182]
[1726889259937,0.25098,146.35,146.28,0.2501342]
[1726889259938,7.08398,146.35,146.28,0.2501342]
[1726889260245,0.25098,146.33,146.28,0.2501342]
[1726889266249,48.14498,146.33,146.28,0.2501342]
[1726889267943,41.31098,146.34,146.28,0.2501342]
[1726889270143,42.50060021,146.34,146.28,0.2501342]
[1726889270861,1.31511021,146.34,146.28,0.2501342]
[1726889271036,1.31511021,146.34,146.28,24.0270182]
[1726889272060,0.12549,146.34,146.28,24.0270182]
[1726889272360,0.25098,146.35,146.28,24.0270182]
[1726889274649,0.25098,146.35,146.28,25.39409175]
[1726889274848,0.44070359,146.36,146.28,24.0270182]
[1726889275853,49.86908026,146.37,146.28,24.0270182]
[1726889276931,0.25098,146.36,146.28,24.0270182]
[1726889281363,48.14348,146.36,146.28,24.0270182]
[1726889281544,0.25098,146.34,146.28,0.2501342]
[1726889281747,20.79098,146.34,146.28,0.2501342]
[1726889281964,0.25098,146.34,146.28,0.2501342]
[1726889287163,7.08438,146.34,146.28,0.2501342]
[1726889287363,48.14438,146.34,146.28,0.2501342]
[1726889287678,0.12549,146.32,146.28,0.2501342]
[1726889295456,7.08528,146.32,146.28,0.2501342]
[1726889295667,6.8348,146.31,146.28,0.2501342]
[1726889295874,0.12549,146.3,146.28,0.2501342]
[1726889296374,0.06549,146.3,146.28,0.2501342]
[1726889296544,1.25437192,146.3,146.28,0.2501342]
[1726889297469,8.08967192,146.3,146.28,0.2501342]
[1726889298170,6.96119,146.29,146.28,0.2501342]
[1726889298365,7.08668,146.29,146.28,0.2501342]
[1726889299367,0.12549,146.28,146.24,0.2501342]
[1726889299574,48.02169,146.28,146.24,0.2501342]
[1726889301966,0.12549,146.27,146.24,0.2501342]
[1726889311667,6.8371,146.26,146.24,0.2501342]
[1726889311864,0.12549,146.25,146.24,0.2501342]
[1726889312186,41.18549,146.25,146.24,0.2501342]
[1726889327703,0.12549,146.25,146.24,0.2501342]
[1726889327901,1.18901927,146.26,146.24,0.2501342]
[1726889328122,41.06,146.3,146.24,0.2501342]
[1726889328503,42.24912326,146.3,146.24,0.2501342]
[1726889329015,1.18912326,146.3,146.24,0.2501342]
[1726889329191,3.08618783,146.3,146.24,0.2501342]
[1726889329396,0.25098,146.29,146.24,0.2501342]
[1726889339890,1.18912326,146.3,146.25,6.121]
[1726889340109,47.8934,146.34,146.25,6.121]
[1726889341101,49.81428593,146.34,146.25,6.121]
[1726889341314,0.25098,146.33,146.25,6.121]
[1726889350401,0.25098,146.33,146.26,16.3789]
[1726889351013,0.25098,146.33,146.26,15.9354]
[1726889352130,20.79098,146.33,146.26,15.9354]
[1726889352300,0.25098,146.33,146.26,15.9354]
[1726889361517,1.44000016,146.33,146.26,15.9354]
[1726889367633,1.18902016,146.33,146.26,15.9354]
[1726889367840,1.18902016,146.33,146.24,0.2501342]
[1726889367841,41.10832141,146.37,146.27,44.05193224]
[1726889368135,1.18844703,146.35,146.29,6.3221]
[1726889368432,41.10832141,146.37,146.29,6.3221]
[1726889369226,0.25098,146.36,146.29,6.3221]
[1726889371319,41.10832141,146.37,146.29,6.3221]
[1726889371519,41.10832141,146.37,146.3,17.90961593]
[1726889372331,0.04832141,146.37,146.3,17.90961593]
[1726889372628,7.24194001,146.36,146.3,17.90961593]
[1726889373654,7.24194001,146.36,146.3,16.5427]
[1726889379860,7.11645001,146.36,146.31,6.3897]
[1726889384340,7.11645001,146.36,146.32,1.36682141]
[1726889384645,0.04832141,146.37,146.33,15.6712]
[1726889394767,0.04832141,146.37,146.35,6.1136]
[1726889395653,0.04832141,146.37,146.35,7.48001933]
[1726889396562,0.04832141,146.37,146.35,6.1136]
[1726889407585,0.04832141,146.37,146.36,25.14336482]
[1726889407792,0.04832141,146.37,146.36,37.72917639]
[1726889408081,0.04832141,146.37,146.36,53.79257639]
[1726889408591,0.04832141,146.37,146.36,52.55158557]
[1726889408959,0.04832141,146.37,146.36,60.15672638]
[1726889409184,0.2501342,146.39,146.37,20.25098]
[1726889409358,0.2501342,146.39,146.38,37.85405507]
[1726889410878,0.2501342,146.39,146.38,37.97954507]
[1726889411161,0.2501342,146.39,146.38,42.72727557]
[1726889411963,0.2501342,146.39,146.38,44.0931115]
[1726889412594,0.2501342,146.39,146.38,60.1565115]
[1726889413581,0.3149609,146.45,146.38,60.1565115]
[1726889413582,0.3149609,146.45,146.4,16.0634]
[1726889413880,0.3149609,146.45,146.43,12.58581157]
[1726889414092,0.3149609,146.45,146.44,25.14247664]
[1726889415593,0.3149609,146.45,146.44,60.80946821]
[1726889415800,0.3149609,146.45,146.44,59.44387557]
[1726889416395,0.3149609,146.45,146.44,79.44387557]
[1726889417677,0.2501342,146.48,146.47,36.61367557]
[1726889420069,0.2501342,146.48,146.47,23.902374]
[1726889420682,0.2501342,146.48,146.47,0.12549]
[1726889421579,0.2501342,146.48,146.45,12.58581157]
[1726889422088,0.2501342,146.48,146.46,23.776884]
[1726889423314,0.2501342,146.48,146.47,37.72795255]
[1726889424190,0.2501342,146.48,146.47,36.36269557]
[1726889425099,0.2501342,146.48,146.46,23.776884]
[1726889425310,0.2501342,146.48,146.47,37.72775663]
[1726889426289,0.2501342,146.48,146.47,36.36269557]
[1726889426513,0.2501342,146.48,146.47,36.61367557]
[1726889429411,0.2501342,146.48,146.47,23.776884]
[1726889430414,0.2501342,146.48,146.47,25.14196828]
[1726889430612,0.2501342,146.48,146.47,37.72777985]
[1726889431294,0.2501342,146.48,146.47,36.61367557]
[1726889431516,0.2501342,146.48,146.47,23.776884]
[1726889431890,0.2501342,146.48,146.44,22.8302]
[1726889432112,0.2501342,146.48,146.44,6.2849]
[1726889433715,0.2501342,146.48,146.45,23.776884]
[1726889434094,0.2501342,146.48,146.47,23.776884]
[1726889440215,0.2501342,146.48,146.46,23.776884]
[1726889441314,0.2501342,146.48,146.47,23.776884]
[1726889441907,0.2501342,146.48,146.46,23.776884]
[1726889444504,0.2501342,146.48,146.45,23.902374]
[1726889447122,0.2501342,146.48,146.45,36.48818557]
[1726889447325,0.2501342,146.48,146.45,23.902374]
[1726889448418,0.2501342,146.48,146.45,23.776884]
[1726889451726,0.2501342,146.48,146.47,23.776884]
[1726889454511,0.2501342,146.48,146.46,23.776884]
[1726889458423,0.2501342,146.48,146.47,25.14218681]
[1726889459517,0.2501342,146.48,146.47,37.72799838]
[1726889459827,0.2501342,146.48,146.47,36.36269557]
[1726889460034,0.2501342,146.48,146.47,36.61367557]
[1726889460440,0.2501342,146.48,146.47,37.97865486]
[1726889461136,0.2501342,146.48,146.47,56.61367557]
[1726889462139,0.2501342,146.48,146.47,57.97847444]
[1726889463637,0.2501342,146.48,146.47,45.39266287]
[1726889463850,0.2501342,146.48,146.47,56.61367557]
[1726889464424,0.2501342,146.48,146.47,57.97847658]
[1726889465440,0.2501342,146.48,146.47,56.61367557]
[1726889465640,0.2501342,146.48,146.47,57.97838358]
[1726889468137,0.2501342,146.48,146.47,56.61367557]
[1726889468627,0.2501342,146.48,146.45,15.7842]